bitfinex/quotes_ETHUSD_20250110
["timestamp","ask_amount","ask_price","bid_price","bid_amount"]
[1736516329870,0.03872592,3228.5,3226.7,3.09909]
[1736516330076,0.03872592,3228.5,3226.2,3.09957]
[1736516330274,3.09866,3227.2,3225.4,1.621]
[1736516330572,3.09866,3227.2,3223.5,2.74174051]
[1736516330573,3.09908,3226.8,3224.6,3.10115]
[1736516330803,0.309908,3226.7,3224.5,1.621]
[1736516331045,3.09789,3228.0,3224.2,5.12318441]
[1736516331270,3.0986,3227.3,3224.2,5.12318441]
[1736516331477,0.882,3228.0,3224.4,3.015]
[1736516331611,0.882,3226.4,3224.6,0.005]
[1736516331811,0.03838535,3226.3,3224.6,0.005]
[1736516332013,3.09975,3226.1,3224.6,0.005]
[1736516332254,0.882,3225.1,3224.6,0.005]
[1736516333354,0.882,3226.1,3224.6,0.005]
[1736516333523,4.347,3226.2,3225.2,0.0225]
[1736516333747,0.882,3226.8,3225.7,3.1001]
[1736516333948,0.882,3227.6,3225.9,3.0]
[1736516334112,2.42967121,3228.9,3225.9,3.0]
[1736516334113,0.882,3228.3,3226.3,0.55]
[1736516334309,0.882,3229.0,3226.8,3.09904]
[1736516334544,0.1695246,3228.9,3226.9,3.09894]
[1736516334818,0.882,3229.0,3226.6,5.12318441]
[1736516335091,0.03870928,3229.6,3228.4,3.09741]
[1736516335293,0.03870928,3229.6,3227.1,1.6448]
[1736516335648,0.882,3229.7,3227.1,4.6448]
[1736516335849,0.0387083,3229.6,3227.2,5.12318441]
[1736516336049,3.09657,3229.4,3228.0,3.09789]
[1736516336290,0.92042098,3229.7,3227.1,1.6448]
[1736516336492,0.9207073,3229.7,3227.1,1.6448]
[1736516336661,0.882,3229.7,3227.5,0.0075]
[1736516336866,0.03842601,3229.6,3227.6,3.09827]
[1736516337060,0.882,3229.7,3227.5,3.09837]
[1736516337061,0.92070763,3229.7,3227.5,3.09837]
[1736516337265,0.882,3229.7,3226.5,5.12318441]
[1736516337484,3.097,3229.0,3226.3,1.653]
[1736516337655,0.34842146,3228.9,3226.3,1.653]
[1736516337849,0.882,3229.3,3226.5,5.12318441]
[1736516338048,0.882,3229.3,3228.9,3.097]
[1736516338289,0.882,3229.3,3228.0,0.0075]
[1736516338290,3.882,3230.0,3228.6,3.09731]
[1736516338462,3.0,3230.0,3229.0,3.09685]
[1736516338666,3.0,3230.0,3229.8,3.09612]
[1736516339452,4.9e-06,3230.2,3230.0,3.09597]
[1736516339657,4.9e-06,3230.2,3230.1,4.02254]
[1736516339857,4.9e-06,3230.2,3230.1,5.0225]
[1736516340068,4.9e-06,3230.2,3230.1,16.24268441]
[1736516340268,0.31822112,3231.6,3231.5,3.09453]
[1736516340492,0.31822112,3231.6,3231.5,3.10203]
[1736516340493,1.12e-06,3231.6,3231.5,3.10203]
[1736516340669,4.345,3232.4,3231.6,3.09444]
[1736516340877,4.345,3232.4,3232.2,3.09386]
[1736516341102,0.1625375,3233.4,3232.4,3.0]
[1736516341305,0.1625375,3233.4,3233.2,3.0929]
[1736516341693,0.1625375,3233.4,3233.3,3.015]
[1736516341896,0.1625375,3233.4,3233.3,3.0]
[1736516342096,0.1625375,3233.4,3233.2,3.0929]
[1736516342312,0.1625375,3233.4,3233.3,2.17177]
[1736516342313,7.5e-06,3233.4,3233.3,2.17177]
[1736516342498,7.5e-06,3233.4,3233.2,3.0929]
[1736516342724,7.5e-06,3233.4,3233.3,10.23419441]
[1736516343224,0.23854235,3234.7,3234.6,3.09155]
[1736516343429,0.882,3236.0,3234.0,3.0]
[1736516343591,4.341,3236.3,3234.6,3.0]
[1736516343787,0.1625375,3236.6,3236.4,3.08981]
[1736516343987,0.1625375,3236.6,3236.5,2.81216]
[1736516344206,0.1625375,3236.6,3236.4,3.08981]
[1736516344403,0.78125,3237.5,3236.4,3.08981]
[1736516344404,0.78125,3237.5,3236.6,1.5504]
[1736516344602,0.78125,3237.5,3237.3,3.08894]
[1736516344831,0.31829284,3239.5,3237.9,1.6528]
[1736516345034,0.1625375,3239.7,3238.6,5.12318441]
[1736516345518,0.1625375,3239.7,3239.5,3.08687]
[1736516345892,7.5e-06,3239.7,3239.6,3.0]
[1736516346132,7.5e-06,3239.7,3239.5,3.08687]
[1736516346334,7.5e-06,3239.7,3238.7,5.12318441]
[1736516346640,7.5e-06,3239.7,3239.5,3.08687]
[1736516347185,7.5e-06,3239.7,3238.3,3.08804]
[1736516347471,7.5e-06,3239.7,3238.1,5.12318441]
[1736516347677,7.5e-06,3239.7,3238.8,3.08752]
[1736516347860,7.5e-06,3239.7,3237.4,3.08887]
[1736516347861,7.5e-06,3239.7,3237.0,5.08924]
[1736516348029,0.25,3239.4,3237.1,3.08914]
[1736516348232,0.25,3239.0,3236.2,0.09467138]
[1736516348580,1.0445,3238.2,3236.2,0.09467138]
[1736516348750,0.25,3237.8,3236.2,0.09467138]
[1736516348947,3.0,3237.0,3236.2,0.09467138]
[1736516349138,3.0,3236.8,3236.2,0.09467138]
[1736516349477,0.7758889,3236.7,3236.2,0.09467138]
[1736516349772,0.03862671,3236.7,3236.3,3.0899]
[1736516349974,1.0445,3237.2,3236.3,3.0899]
[1736516350131,1.0445,3238.1,3236.5,3.08974]
[1736516350478,1.0445,3238.1,3236.2,0.09467138]
[1736516350662,0.03861331,3238.0,3235.8,3.09034]
[1736516350878,1.0445,3238.1,3235.9,3.0]
[1736516351172,4.334,3238.9,3238.1,3.08816]
[1736516351173,5.3785,3238.9,3238.1,3.08816]
[1736516351380,5.3785,3238.9,3237.2,1.596]
[1736516351381,1.0445,3239.6,3237.3,0.0225]
[1736516351559,1.0445,3239.6,3237.5,3.08875]
[1736516351762,0.03858673,3239.5,3238.3,3.088]
[1736516351963,0.03858673,3239.5,3238.6,3.08766]
[1736516352276,7.5e-06,3239.7,3239.0,3.08736]
[1736516352483,7.5e-06,3239.7,3238.1,3.0]
[1736516352484,7.5e-06,3239.7,3238.1,3.08817]
[1736516352786,1.0445,3239.6,3236.5,1.5004]
[1736516352937,0.03860005,3239.5,3236.6,3.08966]
[1736516353279,1.0445,3239.6,3237.7,0.0225]
[1736516353463,7.5e-06,3239.7,3237.8,1.6139]
[1736516353686,7.5e-06,3239.7,3238.5,3.08783]
[1736516353886,7.5e-06,3239.7,3237.0,3.08918]
[1736516353887,3.08701,3239.4,3237.7,3.08854]
[1736516354059,1.0445,3239.1,3236.9,1.6139]
[1736516354406,0.03859772,3239.0,3236.9,3.08935]
[1736516354618,0.03859772,3239.0,3236.1,1.6139]
[1736516354921,0.9945,3239.1,3237.9,3.0884]
[1736516355215,0.9945,3239.1,3237.4,3.08887]
[1736516355216,3.12599934,3239.0,3237.4,3.08887]
[1736516355421,0.41204993,3238.9,3236.1,1.6139]
[1736516355600,3.0,3237.7,3234.2,5.09193]
[1736516355778,0.41204993,3238.9,3234.7,3.09147]
[1736516355779,0.03861939,3237.6,3234.7,3.09147]
[1736516355962,3.08884,3237.5,3234.7,3.09147]
[1736516356164,4.332,3237.8,3235.1,3.09102]
[1736516356432,0.4332,3237.7,3234.7,3.09147]
[1736516356703,0.4332,3237.7,3234.6,1.6328]
[1736516356704,1e-05,3237.7,3234.6,1.6328]
[1736516356860,0.03851419,3239.6,3236.3,1.5591]
[1736516357064,1.2371745,3239.7,3236.9,3.08928]
[1736516357259,1.2371745,3239.7,3238.1,3.08814]
[1736516357260,7.5e-06,3239.7,3238.1,3.08814]
[1736516357473,3.08699,3239.4,3237.2,3.08906]
[1736516357801,1.5445,3238.6,3235.6,1.5137]
[1736516358101,0.03861052,3238.5,3235.6,1.5137]
[1736516358301,0.9945,3238.6,3236.0,0.0075]
[1736516358502,0.9945,3238.6,3237.1,3.08918]
[1736516358662,0.03859917,3238.5,3237.3,3.08897]
[1736516358862,0.9945,3238.6,3237.0,0.0225]
[1736516359062,0.9945,3238.6,3236.7,35.0]
[1736516359303,0.9945,3238.6,3235.6,3.5137]
[1736516359476,3.08855,3237.8,3236.3,3.0899]
[1736516359669,0.9945,3237.6,3234.9,1.5137]
[1736516359862,0.9945,3237.6,3235.4,0.0075]
[1736516360090,0.03861164,3237.5,3235.1,3.09105]
[1736516360291,0.03861164,3237.5,3234.9,1.5137]
[1736516360292,0.03861164,3237.5,3235.3,3.0909]
[1736516360506,0.03861164,3237.5,3235.3,3.09081]
[1736516360661,0.9945,3237.6,3234.9,1.5137]
[1736516360978,5.3255,3238.2,3236.7,3.0]
[1736516361222,3.08694,3239.5,3237.3,3.08899]
[1736516361517,0.9945,3238.3,3236.4,1.5137]
[1736516361721,3.08823,3238.1,3235.6,3.09061]
[1736516361881,0.03861155,3238.0,3235.5,1.5137]
[1736516362208,0.9945,3237.5,3235.1,3.091]
[1736516362422,0.9945,3237.5,3234.7,1.5137]
[1736516362423,4.36962518,3237.4,3234.7,1.5137]
[1736516362570,0.53641252,3237.3,3235.7,3.09049]
[1736516362764,0.53641252,3237.3,3234.9,3.09128]
[1736516363013,4.331,3237.4,3236.8,3.08946]
[1736516363317,0.9945,3237.5,3235.3,3.0]
[1736516363472,0.9945,3237.5,3234.8,0.38977236]
[1736516363803,0.98631726,3237.5,3234.7,1.5137]
[1736516364003,0.98631726,3237.5,3235.3,0.0075]
[1736516364165,0.98631726,3237.5,3236.4,3.08983]
[1736516364364,0.98631726,3237.5,3236.2,3.08996]
[1736516364565,7.26e-06,3237.5,3237.3,3.08896]
[1736516364769,7.26e-06,3237.5,3237.4,3.0075]
[1736516364964,7.26e-06,3237.5,3237.4,5.07888]
[1736516365163,1.23687,3240.3,3237.4,6.69997]
[1736516365375,1.23687,3240.3,3239.4,3.08697]
[1736516365677,1.23687,3240.3,3237.9,0.0075]
[1736516365678,3.08652,3239.9,3236.4,3.08978]
[1736516365911,3.08779,3238.6,3236.5,1.6226]
[1736516366225,0.03859908,3238.5,3235.8,1.5657]
[1736516366403,3.08723,3239.2,3237.4,3.08882]
[1736516366605,0.03860493,3239.1,3236.0,3.09016]
[1736516366813,4.324364,3239.3,3236.8,3.08939]
[1736516367018,3.0,3238.9,3235.8,1.5657]
[1736516367240,4.324414,3239.3,3235.8,1.5657]
[1736516367241,3.08756,3238.8,3235.8,1.5657]
[1736516367367,0.308756,3238.7,3236.6,3.08961]
[1736516367733,0.308756,3238.7,3236.1,0.0075]
[1736516367734,3.08772,3238.7,3237.3,3.08896]
[1736516368020,3.08772,3238.7,3235.9,3.09033]
[1736516368021,7.5e-06,3239.7,3236.8,3.0225]
[1736516368328,7.5e-06,3239.7,3238.1,3.0]
[1736516368607,7.5e-06,3239.7,3236.8,2.0]
[1736516368608,7.5e-06,3239.7,3238.6,3.08774]
[1736516368770,3.0869,3239.5,3237.5,4.69121]
[1736516368968,7.5e-06,3239.7,3237.9,3.08837]
[1736516368969,0.3472769,3239.4,3237.9,3.08837]
[1736516369171,0.0385869,3239.4,3236.7,1.5042]
[1736516369386,0.55,3239.4,3236.7,1.5042]
[1736516369569,0.55,3239.2,3235.4,1.99822138]
[1736516369769,0.03861133,3239.1,3236.4,3.08983]
[1736516369964,0.03861133,3239.1,3235.4,1.5142]
[1736516370210,3.08762,3238.8,3237.3,3.08897]
[1736516370529,0.03860333,3238.7,3233.6,8.0]
[1736516370702,3.08766,3238.7,3236.9,3.08936]
[1736516371004,3.39118113,3239.1,3237.1,3.08916]
[1736516371337,0.55,3238.6,3234.7,3.09147]
[1736516371467,3.08851,3237.8,3234.4,3.09167]
[1736516371669,3.09016,3236.1,3234.4,3.09171]
[1736516371969,3.0911,3235.1,3233.6,35.0]
[1736516372172,0.03863981,3235.0,3232.9,2.814329]
[1736516372371,3.55,3235.9,3232.9,1.576]
[1736516372610,3.55,3235.9,3230.5,4.33]
[1736516372611,5.09453543,3235.4,3232.1,3.0939]
[1736516372818,5.09453543,3234.8,3231.7,1.238781]
[1736516373091,5.09453543,3234.8,3230.5,2.0]
[1736516373092,3.09332,3232.8,3231.2,3.09474]
[1736516373353,0.03866914,3232.7,3230.8,3.0952]
[1736516373650,3.0,3234.5,3230.8,3.0952]
[1736516373863,3.0,3234.5,3230.9,3.0]
[1736516374161,4.331,3235.0,3231.2,2.0]
[1736516374339,3.0,3234.7,3231.1,3.09483]
[1736516374652,3.0,3234.7,3230.8,1.239105]
[1736516374653,3.09285,3233.3,3230.9,35.0]
[1736516374859,3.09157,3234.6,3231.1,6.09492]
[1736516375015,3.09256,3233.6,3232.1,3.09393]
[1736516375217,0.50945354,3234.7,3231.3,0.015]
[1736516375411,4.331,3235.0,3232.1,0.0075]
[1736516375655,0.03866034,3234.9,3232.2,0.0075]
[1736516375964,3.09153,3234.7,3233.4,35.0]
[1736516376114,0.0386497,3234.6,3233.4,35.0]
[1736516376358,0.0386497,3234.6,3230.0,1.50083761]
[1736516376359,0.55,3234.3,3231.2,8.19225746]
[1736516376556,0.55,3234.0,3231.3,3.09472]
[1736516376758,3.09256,3233.6,3231.2,40.09746746]
[1736516376986,0.364176,3234.2,3232.2,3.0075]
[1736516377190,7.42219,3235.0,3232.1,3.09387]
[1736516377191,4.331,3235.0,3233.1,3.093]
[1736516377355,0.03864742,3234.9,3233.1,3.09298]
[1736516377560,3.09179,3234.4,3232.6,3.09348]
[1736516377907,3.09093,3235.3,3230.8,1.239131]
[1736516377908,3.0906,3235.7,3234.1,3.09196]
[1736516378069,4.332,3236.2,3235.2,3.09093]
[1736516378275,4.332,3236.2,3234.8,3.0]
[1736516378495,4.332,3236.2,3234.7,5.09746746]
[1736516378656,4.332,3236.2,3234.9,35.0]
[1736516378863,0.03862915,3235.9,3234.2,4.6364]
[1736516379062,0.03863082,3235.9,3234.6,3.09152]
[1736516379402,0.03863381,3235.8,3233.9,3.09217]
[1736516379571,0.78125,3236.0,3232.9,5.09746746]
[1736516379895,3.09046,3235.8,3233.1,3.0]
[1736516380124,3.09089,3235.4,3233.0,3.0]
[1736516380317,0.78125,3236.0,3233.6,3.0]
[1736516380500,0.78125,3236.0,3234.9,0.0075]
[1736516380699,0.78125,3236.0,3235.9,3.09033]
[1736516381020,0.78125,3236.0,3234.9,0.0075]
[1736516381189,0.78125,3236.0,3235.2,3.09092]
[1736516381391,0.78125,3236.0,3234.7,5.09746746]
[1736516381595,0.78125,3236.0,3235.8,3.09039]
[1736516382180,0.78125,3236.0,3234.9,5.09746746]
[1736516382478,0.78125,3236.0,3234.5,3.09161]
[1736516382684,0.78125,3236.0,3233.7,5.09746746]
[1736516382917,0.78125,3236.0,3234.9,3.0912]
[1736516383119,0.78125,3236.0,3234.9,0.015]
[1736516383322,0.78125,3236.0,3234.3,5.09746746]
[1736516383523,0.78125,3236.0,3234.3,8.18925746]
[1736516383694,3.12897429,3235.9,3233.5,3.09262]
[1736516383889,0.39102243,3235.8,3234.4,3.09168]
[1736516384105,0.03863819,3235.7,3233.7,5.09746746]
[1736516384306,0.03863173,3235.9,3233.8,3.0]
[1736516384511,0.03863173,3235.9,3233.1,5.09746746]
[1736516384705,0.78125,3236.0,3233.7,5.09746746]
[1736516384916,0.03863225,3235.9,3234.6,3.09155]
[1736516385182,0.78125,3236.0,3234.9,3.0225]
[1736516385529,0.78125,3236.0,3235.8,3.0904]
[1736516385677,0.78125,3236.0,3235.6,3.0906]
[1736516385877,0.78125,3236.0,3234.4,3.09176]
[1736516386217,0.03863161,3235.9,3234.8,3.09129]
[1736516386410,0.78125,3236.0,3233.7,8.09746746]
[1736516386411,3.87149,3236.0,3233.7,8.09746746]
[1736516386577,0.03863675,3235.9,3233.7,5.09746746]
[1736516386779,0.03863675,3235.9,3233.4,4.64908]
[1736516386780,3.09052,3235.7,3233.4,3.09271]
[1736516386978,3.09199,3234.2,3233.3,2.52722974]
[1736516387224,0.03865536,3234.1,3233.3,2.52722974]
[1736516387424,4.333,3234.5,3233.7,3.09242]
[1736516387625,4.333,3234.5,3233.2,3.15903717]
[1736516387626,4.333,3234.5,3234.3,3.09182]
[1736516388003,4.333,3234.5,3233.1,5.09746746]
[1736516388250,4.333,3234.5,3233.5,3.09254]
[1736516388453,4.333,3234.5,3232.8,1.5625]
[1736516388747,4.333,3234.5,3233.6,3.015]
[1736516388878,4.333,3234.5,3234.3,3.09183]
[1736516389079,4.333,3234.5,3233.1,5.09746746]
[1736516389483,4.333,3234.5,3234.2,3.09191]
[1736516389683,4.333,3234.5,3233.6,3.09251]
[1736516389918,4.333,3234.5,3233.5,3.09255]
[1736516390125,4.333,3234.5,3232.5,5.09746746]
[1736516390126,4.333,3234.5,3232.9,3.09311]
[1736516390284,4.333,3234.5,3233.6,3.09251]
[1736516390483,4.333,3234.5,3233.7,3.09241]
[1736516390840,0.03864911,3234.4,3232.9,3.09315]
[1736516391019,3.09275,3233.4,3231.4,2.52722974]
[1736516391232,0.03866799,3233.3,3231.4,2.52722974]
[1736516391440,3.0,3233.9,3231.2,2.52722974]
[1736516391639,0.25,3234.3,3231.2,2.52722974]
[1736516391640,3.0,3234.2,3231.2,2.52722974]
[1736516391955,0.55,3233.1,3231.2,2.52722974]
[1736516392115,3.0,3233.7,3231.5,3.09453]
[1736516392116,3.09243,3233.7,3231.5,3.09453]
[1736516392316,0.03845567,3233.6,3231.2,2.52722974]
[1736516392518,3.09346,3232.7,3231.2,2.52722974]
[1736516392813,0.30384557,3233.5,3230.6,0.1264867]
[1736516392814,3.094,3232.1,3230.8,3.09516]
[1736516393060,0.038683,3232.0,3230.7,3.0953]
[1736516393254,3.09425,3231.8,3230.6,0.1264867]
[1736516393420,4.334,3231.9,3230.6,0.1264867]
[1736516393421,0.0386865,3231.7,3230.6,0.1264867]
[1736516393611,4.334,3231.9,3230.6,0.1264867]
[1736516393810,0.47208362,3231.8,3230.6,0.1264867]
[1736516394062,3.09526,3230.8,3230.6,0.1264867]
[1736516394233,0.03869437,3230.7,3230.6,0.1264867]
[1736516394557,3.09439,3231.7,3230.6,0.1264867]
[1736516394718,3.09481,3231.3,3230.6,0.1264867]
[1736516394909,0.03869534,3231.2,3230.6,0.1264867]
[1736516395240,3.09468,3231.4,3230.6,0.1264867]
[1736516395441,0.4334,3231.8,3230.6,0.1264867]
[1736516395442,3.09442,3231.7,3230.6,0.1264867]
[1736516395645,4.334,3231.9,3230.6,0.1264867]
[1736516395858,3.09281,3233.3,3231.4,35.0]
[1736516396156,3.09349,3232.6,3230.6,0.1264867]
[1736516396371,3.09397,3232.1,3230.9,3.09507]
[1736516396526,3.0931,3233.0,3230.7,35.0]
[1736516396725,3.09397,3232.1,3230.8,3.09513]
[1736516396936,8.05760885,3233.4,3231.0,3.09497]
[1736516397138,8.05760885,3233.4,3230.7,35.0]
[1736516397139,3.0931,3233.0,3230.7,38.09522]
[1736516397368,0.565,3232.8,3230.6,0.1264867]
[1736516397525,0.5725,3232.3,3230.6,0.1264867]
[1736516397731,3.09469,3231.4,3230.6,0.1264867]
[1736516397950,0.03869291,3231.3,3230.6,0.1264867]
[1736516398266,3.09428,3231.8,3230.6,3.2218567]
[1736516398564,3.09435,3231.7,3230.6,0.1264867]
[1736516398737,0.6287593,3233.1,3230.6,0.1264867]
[1736516398951,3.09368,3232.4,3231.0,3.09495]
[1736516399187,0.742781,3233.2,3230.6,0.1264867]
[1736516399188,3.09346,3232.7,3230.7,35.0]
[1736516399388,3.093,3233.1,3230.8,3.0952]
[1736516399548,0.03867929,3233.0,3230.7,35.0]
[1736516399749,0.03867929,3233.0,3230.6,0.1264867]
[1736516399750,3.09409,3232.0,3230.6,0.1264867]
[1736516400069,0.0075,3233.0,3230.8,3.09512]
[1736516400267,3.09423,3231.9,3230.6,0.1264867]
[1736516400483,0.03868731,3231.8,3230.6,0.1264867]
[1736516400938,3.09329,3232.9,3230.6,0.1264867]
[1736516401144,4.336,3232.8,3231.7,3.09431]
[1736516401344,4.336,3232.8,3230.6,0.1264867]
[1736516401650,3.09348,3232.6,3230.6,0.1264867]
[1736516402020,3.09386,3232.2,3230.6,0.1264867]
[1736516402308,3.09456,3231.5,3230.6,0.1264867]
[1736516402446,3.0953,3230.7,3230.6,0.1264867]
[1736516402647,3.13400366,3230.7,3230.6,0.1264867]
[1736516402843,3.09601,3230.0,3228.8,3.09711]
[1736516403083,3.09601,3230.0,3228.3,3.09753]
[1736516403084,0.03870768,3229.9,3228.4,3.09748]
[1736516403266,4.337,3230.1,3228.5,3.10487]
[1736516403468,0.03870008,3230.0,3228.0,4.67207]
[1736516403669,0.03870008,3230.0,3228.3,3.09759]
[1736516403877,0.03870008,3230.0,3228.0,4.67205]
[1736516404060,3.09725,3228.7,3227.3,1.5742]
[1736516404257,6.19232,3229.8,3226.0,2.52722974]
[1736516404258,0.03871898,3228.6,3226.6,5.09746746]
[1736516404458,3.09707,3228.9,3226.6,8.19668746]
[1736516404670,0.03872044,3228.8,3226.6,8.19668746]
[1736516404873,3.09638,3229.6,3226.7,3.0]
[1736516405075,4.337,3230.1,3228.2,3.09763]
[1736516405248,4.337,3230.1,3228.6,3.09731]
[1736516405448,4.337,3230.1,3229.1,3.0075]
[1736516405676,4.339,3232.3,3229.6,5.09746746]
[1736516405862,4.339,3232.3,3229.9,1.5742]
[1736516406064,3.09406,3232.0,3230.6,3.09535]
[1736516406265,3.13283418,3231.9,3229.9,1.5742]
[1736516406465,4.339,3232.3,3230.9,3.09505]
[1736516406651,4.339,3232.3,3230.7,0.565]
[1736516406850,4.339,3232.3,3230.3,35.0]
[1736516406851,4.339,3232.3,3232.2,3.09386]
[1736516407490,4.339,3234.3,3233.6,3.0925]
[1736516407693,4.339,3234.3,3233.1,3.0]
[1736516408002,0.78125,3236.0,3234.4,3.09168]
[1736516408146,0.78125,3236.0,3234.2,5.09746746]
[1736516408350,0.78125,3236.0,3234.8,3.0913]
[1736516408590,0.78125,3236.0,3233.6,5.09746746]
[1736516408787,3.0,3235.6,3233.9,3.09222]
[1736516408989,3.09141,3234.8,3233.3,3.09275]
[1736516409151,0.64768705,3235.5,3232.9,1.6022]
[1736516409152,0.03864677,3235.3,3232.9,1.6022]
[1736516409347,0.03864677,3235.3,3233.6,3.09252]
[1736516409592,0.03864677,3235.3,3233.1,3.0]
[1736516409593,3.09105,3235.2,3233.9,3.09223]
[1736516409798,0.78125,3236.0,3233.2,3.0]
[1736516409965,0.78125,3236.0,3233.1,6.09295]
[1736516409966,0.78125,3236.0,3233.7,3.0]
[1736516410176,0.78125,3236.0,3234.2,5.09746746]
[1736516410360,0.03863681,3235.9,3234.2,3.0919]
[1736516410560,0.03863681,3235.9,3233.6,5.09746746]
[1736516410561,0.03863681,3235.9,3234.6,3.09154]
[1736516410801,0.03863681,3235.9,3233.6,5.09746746]
[1736516410802,0.78125,3236.0,3233.9,3.0]
[1736516411028,0.78125,3236.0,3234.2,5.09746746]
[1736516411178,3.09065,3235.6,3233.7,3.09242]
[1736516411390,0.78125,3236.0,3234.8,3.09133]
[1736516411689,0.78125,3236.0,3232.9,1.6022]
[1736516411690,0.78125,3236.0,3234.3,0.015]
[1736516411880,0.78125,3236.0,3235.7,3.0905]
[1736516412074,0.78125,3236.0,3235.8,3.09038]
[1736516412574,0.78125,3236.0,3234.8,40.09746746]
[1736516412906,0.78125,3236.0,3234.2,8.18933746]
[1736516412907,3.09043,3235.8,3234.2,8.18933746]
[1736516413206,0.78125,3236.0,3234.2,5.09746746]
[1736516413405,0.78125,3236.0,3235.4,3.09076]
[1736516413717,0.78125,3236.0,3234.9,3.09128]
[1736516413918,0.03863029,3235.9,3234.4,3.09176]
[1736516414202,0.78125,3236.0,3235.8,3.09038]
[1736516414518,0.03862573,3235.9,3233.8,5.08894397]
[1736516414698,0.03862573,3235.9,3234.1,3.09203]
[1736516415001,0.39101457,3235.8,3233.4,1.6459]
[1736516415166,0.78125,3236.0,3233.4,1.6459]
[1736516415167,3.09092,3235.3,3233.9,3.0922]
[1736516415362,3.09061,3235.6,3233.4,1.6459]
[1736516415363,0.03864614,3235.2,3233.4,1.6459]
[1736516415609,0.55,3234.7,3232.1,1.5691]
[1736516415824,3.09221,3234.0,3232.4,3.09361]
[1736516416147,3.09221,3234.0,3231.5,3.09449]
[1736516416148,3.0,3233.6,3231.2,3.15903717]
[1736516416471,3.09271,3233.4,3231.2,3.15903717]
[1736516416605,5.1438944,3233.5,3230.6,8.18432397]
[1736516416778,5.1438944,3233.5,3230.1,2.52722974]
[1736516416779,3.0,3233.1,3230.1,2.52722974]
[1736516416975,3.0,3232.8,3230.1,2.52722974]
[1736516417180,3.09368,3232.4,3230.2,3.09578]
[1736516417415,0.03868005,3232.3,3231.1,3.09487]
[1736516417615,3.0937,3232.4,3230.2,3.0]
[1736516417829,3.09417,3231.9,3230.6,3.09537]
[1736516418050,3.09485,3231.2,3229.8,3.09613]
[1736516418209,0.03869041,3231.1,3229.5,3.09645]
[1736516418542,3.09436,3231.7,3230.4,3.09554]
[1736516418692,0.03868729,3231.6,3229.0,3.0969]
[1736516418893,0.0075,3231.4,3228.8,6.70354397]
[1736516419106,0.0075,3231.4,3228.2,3.09768]
[1736516419107,3.64501,3231.0,3228.4,3.09747]
[1736516419451,3.55,3230.4,3228.4,3.09744]
[1736516419584,3.09703,3228.9,3227.5,4.14182974]
[1736516419789,0.03871468,3228.8,3227.5,2.52722974]
[1736516419990,0.03871915,3229.2,3227.8,3.09801]
[1736516420242,3.09562,3230.4,3228.6,3.09724]
[1736516420545,4.336,3230.7,3228.4,3.0075]
[1736516420742,3.09573,3230.3,3228.4,3.0]
[1736516421023,0.03869922,3230.6,3228.2,1.6146]
[1736516421024,0.03870492,3230.2,3228.2,1.6146]
[1736516421184,3.09641,3229.6,3228.3,3.09755]
[1736516421384,3.09693,3229.0,3227.6,4.71282]
[1736516421622,0.03871704,3228.9,3227.6,3.0982]
[1736516421923,3.0,3229.8,3227.1,0.1796641]
[1736516422224,0.3,3231.0,3227.1,0.1796641]
[1736516422225,3.09725,3228.7,3227.1,0.1796641]
[1736516422429,3.09671,3229.3,3227.1,3.1796641]
[1736516422723,4.336,3230.7,3229.1,3.09675]
[1736516422924,0.4336,3230.6,3228.6,3.09731]
[1736516423086,4.336,3230.7,3230.0,3.09596]
[1736516423287,4.336,3230.7,3229.1,4.65258]
[1736516423535,4.336,3230.7,3229.2,35.0]
[1736516423747,0.03869356,3230.6,3229.2,35.0]
[1736516424025,0.03870045,3230.6,3229.0,3.09691]
[1736516424184,3.0075,3230.4,3227.6,5.08894397]
[1736516424381,3.0075,3230.4,3227.4,1.5215]
[1736516424382,3.09659,3229.4,3227.4,1.5215]
[1736516424621,0.03871828,3229.3,3227.4,0.005]
[1736516424825,3.25,3230.4,3227.4,0.005]
[1736516424982,3.09679,3229.2,3227.4,0.005]
[1736516425185,0.0387222,3229.1,3227.4,0.005]
[1736516425399,3.0972,3228.8,3227.4,3.10346]
[1736516425637,0.55,3228.6,3227.4,0.005]
[1736516425809,0.03873197,3228.5,3227.4,0.005]
[1736516426202,5.08894397,3229.3,3227.4,0.005]
[1736516426405,0.5088944,3229.2,3227.5,3.09837]
[1736516426604,3.09562,3230.4,3227.7,3.0]
[1736516426827,3.09501,3231.0,3228.8,3.09709]
[1736516427139,3.09495,3231.1,3229.5,6.09645]
[1736516427140,0.62388541,3231.1,3229.5,6.09645]
[1736516427315,1.20603705,3233.1,3232.0,3.09398]
[1736516427513,1.42837577,3233.5,3231.2,3.0]
[1736516427725,3.09283,3233.3,3232.0,3.09404]
[1736516427926,3.09258,3233.6,3231.6,3.09435]
[1736516428243,3.09258,3233.6,3230.3,3.09563]
[1736516428244,3.09319,3232.9,3229.6,1.6395]
[1736516428405,0.28868022,3232.8,3229.8,3.09616]
[1736516428598,3.09377,3232.3,3229.6,1.6395]
[1736516428800,3.09367,3232.5,3229.6,4.6395]
[1736516429148,3.09359,3232.5,3231.2,3.09474]
[1736516429474,3.09314,3233.0,3231.6,3.09436]
[1736516429746,0.03867246,3232.9,3231.5,3.09449]
[1736516429907,4.34,3233.8,3230.7,8.08894397]
[1736516429908,3.09252,3233.6,3230.7,5.08894397]
[1736516430108,3.09262,3233.5,3231.6,3.09442]
[1736516430307,3.09273,3233.4,3231.0,1.5449]
[1736516430613,4.339,3234.2,3232.0,3.09403]
[1736516430807,4.339,3234.2,3232.7,3.09338]